fUSD/lending_fUSD_20260227
["ID","MTS","AMOUNT","RATE_DAILY","PERIOD"]
[406848787,1772230232043,-500.0,6.681e-05,2]
[406848788,1772230232052,-500.0,6.681e-05,2]
[406848790,1772230232062,-500.0,6.681e-05,2]
[406848792,1772230232082,-500.0,6.681e-05,2]
[406848794,1772230232091,-500.0,6.681e-05,2]
[406848796,1772230232101,-500.0,6.681e-05,2]
[406848798,1772230232110,-525.39304775,6.681e-05,2]
[406848800,1772230232120,-500.0,6.681e-05,2]
[406848802,1772230232130,-500.0,6.681e-05,2]
[406848804,1772230232140,-500.0,6.681e-05,2]
[406848807,1772230232149,-500.0,6.681e-05,2]
[406848809,1772230232159,-500.0,6.681e-05,2]
[406848811,1772230232169,-500.0,6.681e-05,2]
[406848813,1772230232179,-500.0,6.681e-05,2]
[406848815,1772230232188,-500.0,6.681e-05,2]
[406848817,1772230232197,-500.0,6.681e-05,2]
[406848819,1772230232207,-500.0,6.681e-05,2]
[406848821,1772230232216,-500.0,6.681e-05,2]
[406848823,1772230232226,-500.0,6.681e-05,2]
[406848825,1772230232235,-294.88788294,6.681e-05,2]
[406848827,1772230232244,-500.0,6.681e-05,2]
[406848829,1772230232257,-150.0,6.681e-05,2]
[406848831,1772230232267,-18196.06869331,6.682e-05,2]
[406848833,1772230232280,-29448.22787303,6.682e-05,2]
[406848836,1772230232291,-280.63250004,6.682e-05,2]
[406848838,1772230232303,-271.90586894,6.682e-05,2]
[406848840,1772230232314,-344.81,6.682e-05,2]
[406848842,1772230232326,-3766.60401429,6.682e-05,2]
[406848844,1772230232337,-824.83,6.682e-05,2]
[406848846,1772230232348,-477.97880591,6.682e-05,2]
[406848849,1772230232364,-6478.73944726,6.682e-05,2]
[406848851,1772230232376,-2773.96661148,6.682e-05,2]
[406848853,1772230232387,-565.88918827,6.682e-05,2]
[406848855,1772230232399,-2738.37873719,6.682e-05,2]
[406848861,1772230237949,-7227.96858099,6.682e-05,2]
[406848862,1772230237961,-713.98711326,6.682e-05,2]
[406848863,1772230237972,-315.0,6.682e-05,2]
[406848864,1772230237985,-205691.87650885,6.682e-05,2]
[406848865,1772230238007,-1319.07783769,6.682e-05,2]
[406848866,1772230238018,-6833.30000001,6.682e-05,2]
[406848867,1772230238122,-1622722.38787629,6.682e-05,2]
[406848868,1772230238132,-1000.0,6.781e-05,2]
[406848869,1772230238141,-96709.95223874,6.781e-05,2]
[406848870,1772230238151,-500.0,6.781e-05,2]
[406848871,1772230238160,-400.0,6.8e-05,2]
[406848872,1772230238170,-800.0,6.9e-05,2]
[406848873,1772230238179,-1500.0,6.981e-05,2]
[406848874,1772230238189,-1532.60673339,6.981e-05,2]
[406848875,1772230238198,-1200.0,7e-05,2]
[406848876,1772230238208,-250.0,7.347e-05,2]
[406848877,1772230238218,-250.0,7.347e-05,2]
[406848878,1772230238227,-5000.0,7.347e-05,2]
[406848879,1772230238236,-350.0,7.347e-05,2]
[406848880,1772230238246,-420.0,7.347e-05,2]
[406848881,1772230238255,-1680.0,7.347e-05,2]
[406848882,1772230238264,-5000.0,7.347e-05,2]
[406848883,1772230238274,-255.0,7.349e-05,2]
[406848884,1772230238283,-392.90283323,7.888e-05,2]
[406848886,1772230238292,-727.98,7.897e-05,2]
[406848888,1772230238301,-10717.97,7.953e-05,2]
[406848890,1772230238311,-200.0,7.97e-05,2]
[406848892,1772230238320,-11324.99856886,8e-05,2]
[406848894,1772230238329,-587.0,8.082e-05,2]
[406848895,1772230238339,-2351.0,8.082e-05,2]
[406848896,1772230238348,-433.0,8.084e-05,2]
[406848897,1772230238357,-245.61071948,8.149e-05,2]
[406848898,1772230238367,-500.0,8.219e-05,2]
[406848899,1772230238376,-500.0,8.219e-05,2]
[406848900,1772230238385,-191.92678845,8.219e-05,2]
[406848901,1772230238394,-169.531194,8.219e-05,2]
[406848902,1772230238404,-500.0,8.219e-05,2]
[406848903,1772230238412,-250.0,8.33e-05,2]
[406848904,1772230238421,-500.0,8.493e-05,2]
[406848905,1772230238430,-319.0,8.568e-05,2]
[406848906,1772230238439,-159.05,8.634e-05,2]
[406848907,1772230238448,-500.0,8.673e-05,2]
[406848908,1772230238457,-577.7227958,8.673e-05,2]
[406848909,1772230238466,-500.0,8.673e-05,2]
[406848910,1772230238475,-500.0,8.767e-05,2]
[406848911,1772230238484,-9999.99,8.864e-05,2]
[406848912,1772230238493,-9999.99,8.864e-05,2]
[406848913,1772230238502,-658.73,8.864e-05,2]
[406848914,1772230238512,-150.99,8.864e-05,2]
[406848915,1772230238522,-299.99,8.864e-05,2]
[406848916,1772230238531,-823.0,8.89e-05,2]
[406848917,1772230238541,-3292.0,8.89e-05,2]
[406848919,1772230238551,-150.0,8.891e-05,2]
[406848921,1772230238561,-150.0,8.891e-05,2]
[406848923,1772230238570,-150.0,8.891e-05,2]
[406848925,1772230238580,-150.0,8.891e-05,2]
[406848927,1772230238590,-150.0,8.891e-05,2]
[406848929,1772230238600,-150.0,8.891e-05,2]
[406848931,1772230238610,-736.0,8.892e-05,2]
[406848932,1772230238620,-293.0,8.907e-05,2]
[406848934,1772230238629,-150.0,8.946e-05,2]
[406848936,1772230238639,-150.0,8.946e-05,2]
[406848938,1772230238648,-150.0,8.946e-05,2]
[406848941,1772230238658,-283.94722391,9.001e-05,2]
[406848943,1772230238668,-200.0,9.001e-05,2]
[406848944,1772230238678,-200.0,9.001e-05,2]
[406848945,1772230238687,-500.0,9.041e-05,2]
[406848946,1772230238697,-1000.0,9.221e-05,2]
[406848947,1772230238706,-1000.0,9.221e-05,2]
[406848948,1772230238716,-500.0,9.315e-05,2]
[406848949,1772230238726,-427.46515504,9.589e-05,2]
[406848950,1772230238736,-636.99,9.596e-05,2]
[406848951,1772230238745,-150.0,9.726e-05,2]
[406848952,1772230238755,-156.7972859,9.726e-05,2]
[406848953,1772230238764,-187.94413648,9.726e-05,2]
[406848954,1772230238774,-150.0,9.726e-05,2]
[406848955,1772230238783,-150.0,9.726e-05,2]
[406848956,1772230238792,-150.0,9.726e-05,2]
[406848957,1772230238802,-150.0,9.726e-05,2]
[406848958,1772230238811,-214.50715051,9.726e-05,2]
[406848959,1772230238820,-157.13116755,9.726e-05,2]
[406848960,1772230238830,-262.60482899,9.726e-05,2]
[406848961,1772230238839,-500.0,9.768e-05,2]
[406848962,1772230238849,-500.0,9.768e-05,2]
[406848963,1772230238858,-1152.0,9.779e-05,2]
[406848964,1772230238868,-4609.0,9.779e-05,2]
[406848965,1772230238881,-150.0,9.781e-05,2]
[406848966,1772230238891,-153.00872056,9.781e-05,2]
[406848967,1772230238900,-150.0,9.781e-05,2]
[406848968,1772230238910,-150.0,9.781e-05,2]
[406848969,1772230238920,-150.0,9.781e-05,2]
[406848970,1772230238930,-1252.0,9.781e-05,2]
[406848971,1772230238940,-203.07873168,9.836e-05,2]
[406848972,1772230238950,-200.0,9.836e-05,2]
[406848973,1772230238960,-200.0,9.836e-05,2]
[406848974,1772230238969,-360.45,9.9e-05,2]
[406848975,1772230238979,-28500.66091958,9.95e-05,2]
[406848976,1772230238988,-151.0,0.0001,2]
[406848977,1772230238997,-1967.31764889,0.0001,2]
[406848978,1772230239007,-679.12818486,0.0001,2]
[406848979,1772230239017,-151.0,0.0001,2]
[406848980,1772230239027,-151.0,0.0001,2]
[406848981,1772230239036,-151.0,0.0001,2]
[406848982,1772230239046,-151.0,0.0001,2]
[406848983,1772230239055,-151.0,0.0001,2]
[406848984,1772230239065,-151.0,0.0001,2]
[406848985,1772230239075,-151.0,0.0001,2]
[406848986,1772230239084,-151.0,0.0001,2]
[406848987,1772230239093,-151.0,0.0001,2]
[406848988,1772230239103,-151.0,0.0001,2]
[406848989,1772230239114,-151.0,0.0001,2]
[406848990,1772230239123,-151.0,0.0001,2]
[406848991,1772230239132,-151.0,0.0001,2]
[406848992,1772230239142,-500.0,0.0001,2]
[406848993,1772230239152,-151.0,0.0001,2]
[406848994,1772230239162,-151.0,0.0001,2]
[406848995,1772230239172,-500.0,0.0001,2]
[406848996,1772230239182,-151.0,0.0001,2]
[406848997,1772230239191,-151.0,0.0001,2]
[406848998,1772230239200,-500.0,0.0001,2]
[406848999,1772230239210,-151.0,0.0001,2]
[406849000,1772230239219,-500.0,0.0001,2]
[406849001,1772230239228,-151.0,0.0001,2]
[406849002,1772230239237,-500.0,0.0001,2]
[406849003,1772230239246,-151.0,0.0001,2]
[406849004,1772230239255,-151.0,0.0001,2]
[406849005,1772230239266,-500.0,0.0001,2]
[406849006,1772230239275,-151.0,0.0001,2]
[406849007,1772230239285,-151.0,0.0001,2]
[406849008,1772230239294,-500.0,0.0001,2]
[406849009,1772230239303,-151.0,0.0001,2]
[406849010,1772230239312,-151.0,0.0001,2]
[406849011,1772230239322,-312.27954623,0.0001,2]
[406849012,1772230239331,-151.0,0.0001,2]
[406849013,1772230239342,-151.0,0.0001,2]
[406849014,1772230239351,-151.0,0.0001,2]
[406849015,1772230239361,-151.0,0.0001,2]
[406849016,1772230239370,-151.0,0.0001,2]
[406849017,1772230239379,-151.0,0.0001,2]
[406849018,1772230239389,-151.0,0.0001,2]
[406849019,1772230239398,-151.0,0.0001,2]
[406849020,1772230239407,-500.0,0.0001,2]
[406849021,1772230239417,-500.0,0.0001,2]
[406849022,1772230239427,-500.0,0.0001,2]
[406849023,1772230239436,-500.0,0.0001,2]
[406849024,1772230239446,-500.0,0.0001,2]
[406849025,1772230239456,-500.0,0.0001,2]
[406849026,1772230239465,-500.0,0.0001,2]
[406849027,1772230239474,-500.0,0.0001,2]
[406849028,1772230239484,-500.0,0.0001,2]
[406849029,1772230239497,-500.0,0.0001,2]
[406849030,1772230239507,-500.0,0.0001,2]
[406849031,1772230239518,-500.0,0.0001,2]
[406849032,1772230239527,-500.0,0.0001,2]
[406849033,1772230239537,-1132.75326338,0.0001,2]
[406849034,1772230239546,-500.0,0.000103,2]
[406849035,1772230239555,-500.0,0.000103,2]
[406849036,1772230239564,-500.0,0.000103,2]
[406849037,1772230239574,-500.0,0.000103,2]
[406849038,1772230239583,-888.46058708,0.000103,2]
[406849039,1772230239593,-517.20802019,0.000103,2]
[406849040,1772230239602,-699.99,0.000103,2]
[406849041,1772230239611,-500.0,0.000103,2]
[406849042,1772230239622,-500.0,0.000103,2]
[406849043,1772230239631,-956.4390503,0.000103,2]
[406849044,1772230239640,-500.0,0.000103,2]
[406849045,1772230239650,-500.0,0.000103,2]
[406849046,1772230239659,-500.0,0.000103,2]
[406849047,1772230239669,-500.0,0.000103,2]
[406849048,1772230239678,-500.0,0.000103,2]
[406849049,1772230239687,-918.66170663,0.000103,2]
[406849050,1772230239697,-500.0,0.000103,2]
[406849051,1772230239706,-977.54963407,0.000103,2]
[406849052,1772230239716,-500.0,0.000103,2]
[406849054,1772230239725,-700.0,0.000103,2]
[406849056,1772230239735,-700.0,0.000103,2]
[406849057,1772230239745,-500.0,0.000103,2]
[406849058,1772230239753,-500.0,0.000103,2]
[406849059,1772230239763,-700.0,0.000103,2]
[406849060,1772230239772,-500.0,0.000103,2]
[406849061,1772230239781,-700.0,0.000103,2]
[406849062,1772230239790,-900.0,0.000103,2]
[406849063,1772230239799,-700.0,0.000103,2]
[406849064,1772230239808,-700.0,0.000103,2]
[406849065,1772230239818,-500.0,0.000103,2]
[406849066,1772230239828,-700.0,0.000103,2]
[406849067,1772230239837,-500.0,0.000103,2]
[406849068,1772230239846,-700.0,0.000103,2]
[406849069,1772230239856,-500.0,0.000103,2]
[406849070,1772230239867,-700.0,0.000103,2]
[406849071,1772230239879,-500.0,0.000103,2]
[406849072,1772230239888,-700.0,0.000103,2]
[406849073,1772230239897,-738.63007769,0.000103,2]
[406849074,1772230239906,-700.0,0.000103,2]
[406849075,1772230239915,-700.0,0.000103,2]
[406849076,1772230239925,-500.0,0.000103,2]
[406849077,1772230239934,-1148.17064441,0.000103,2]
[406849078,1772230239944,-500.0,0.000103,2]
[406849079,1772230239955,-772.9626137,0.000103,2]
[406849080,1772230239964,-763.235423,0.00010628,2]
[406849081,1772230239973,-173.106463,0.00010628,2]
[406849082,1772230239983,-1613.0,0.00010757,2]
[406849083,1772230239992,-3478.0,0.00010757,2]
[406849084,1772230240002,-150.0,0.00010959,2]
[406849085,1772230240011,-9460.19512766,0.00011,2]
[406849086,1772230240021,-10940.37796547,0.00011099,2]
[406849087,1772230240030,-10940.37796546,0.00011099,2]
[406849088,1772230240039,-10940.37796546,0.00011099,2]
[406849089,1772230240048,-10940.37796546,0.00011099,2]
[406849090,1772230240058,-1274.09,0.00011507,2]
[406849091,1772230240067,-10940.37796546,0.00011667,2]
[406849092,1772230240076,-198.17,0.00011696,2]
[406849093,1772230240086,-2258.0,0.00011832,2]
[406849095,1772230240096,-679.12818486,0.0001229,2]
[406849097,1772230240105,-500.0,0.0001289,2]
[406849098,1772230240114,-500.0,0.0001289,2]
[406849100,1772230240124,-500.0,0.0001289,2]
[406849102,1772230240134,-500.0,0.0001289,2]
[406849104,1772230240143,-500.0,0.0001289,2]
[406849106,1772230240152,-500.0,0.0001289,2]
[406849107,1772230240161,-500.0,0.0001289,2]
[406849108,1772230240170,-500.0,0.0001289,2]
[406849109,1772230240180,-500.0,0.0001289,2]
[406849110,1772230240189,-500.0,0.0001289,2]
[406849111,1772230240200,-700.0,0.0001289,2]
[406849112,1772230240209,-500.0,0.0001289,2]
[406849113,1772230240219,-500.0,0.0001289,2]
[406849114,1772230240228,-500.0,0.0001289,2]
[406849115,1772230240238,-500.0,0.0001289,2]
[406849116,1772230240247,-500.0,0.0001289,2]
[406849117,1772230240256,-500.0,0.0001289,2]
[406849118,1772230240266,-500.0,0.0001289,2]
[406849119,1772230240279,-500.0,0.0001289,2]
[406849120,1772230240289,-500.0,0.0001289,2]
[406849121,1772230240299,-500.0,0.0001289,2]
[406849122,1772230240309,-500.0,0.0001289,2]
[406849123,1772230240319,-500.0,0.0001289,2]
[406849124,1772230240330,-700.0,0.0001289,2]
[406849125,1772230240340,-500.0,0.0001289,2]
[406849126,1772230240348,-700.0,0.0001289,2]
[406849127,1772230240357,-700.0,0.0001289,2]
[406849128,1772230240367,-500.0,0.0001289,2]
[406849129,1772230240377,-500.0,0.0001289,2]
[406849130,1772230240386,-700.0,0.0001289,2]
[406849131,1772230240395,-500.0,0.0001289,2]
[406849132,1772230240405,-700.0,0.0001289,2]
[406849133,1772230240416,-500.0,0.0001289,2]
[406849134,1772230240425,-700.0,0.0001289,2]
[406849135,1772230240436,-700.0,0.0001289,2]
[406849136,1772230240445,-700.0,0.0001289,2]
[406849137,1772230240455,-700.0,0.0001289,2]
[406849138,1772230240465,-700.0,0.0001289,2]
[406849139,1772230240476,-500.0,0.0001289,2]
[406849140,1772230240486,-700.0,0.0001289,2]
[406849141,1772230240496,-500.0,0.0001289,2]
[406849142,1772230240506,-700.0,0.0001289,2]
[406849143,1772230240515,-500.0,0.0001289,2]
[406849144,1772230240525,-700.0,0.0001289,2]
[406849145,1772230240534,-500.0,0.0001289,2]
[406849146,1772230240544,-500.0,0.0001289,2]
[406849147,1772230240553,-500.0,0.0001289,2]
[406849148,1772230240564,-500.0,0.0001289,2]
[406849149,1772230240574,-500.0,0.0001289,2]
[406849150,1772230240584,-500.0,0.0001289,2]
[406849151,1772230240593,-500.0,0.0001289,2]
[406849152,1772230240603,-10940.37796546,0.00012913,2]
[406849153,1772230240612,-3162.0,0.00013015,2]
[406849154,1772230240621,-3240.0,0.00013425,2]
[406849156,1772230240631,-22851.40088296,0.0001358,2]
[406849158,1772230240640,-500.0,0.00013698,2]
[406849159,1772230240650,-500.0,0.00013698,2]
[406849160,1772230240659,-502.14269457,0.00013698,2]
[406849161,1772230240668,-500.0,0.00013698,2]
[406849162,1772230240678,-500.0,0.00013698,2]
[406849163,1772230240687,-500.0,0.00013698,2]
[406849164,1772230240696,-500.0,0.00013698,2]
[406849165,1772230240705,-500.0,0.00013698,2]
[406849166,1772230240714,-500.0,0.00013698,2]
[406849168,1772230240723,-500.0,0.00013698,2]
[406849169,1772230240732,-500.0,0.00013698,2]
[406849170,1772230240742,-500.0,0.00013698,2]
[406849171,1772230240751,-500.0,0.00013698,2]
[406849172,1772230240760,-500.0,0.00013698,2]
[406849173,1772230240770,-500.0,0.00013698,2]
[406849174,1772230240779,-500.0,0.00013698,2]
[406849175,1772230240788,-500.0,0.00013698,2]
[406849176,1772230240797,-500.0,0.00013698,2]
[406849177,1772230240807,-500.0,0.00013698,2]
[406849179,1772230240815,-500.0,0.00013698,2]
[406849180,1772230240824,-500.0,0.00013698,2]
[406849181,1772230240834,-500.0,0.00013698,2]
[406849182,1772230240842,-500.0,0.00013698,2]
[406849183,1772230240852,-500.0,0.00013698,2]
[406849184,1772230240861,-500.0,0.00013698,2]
[406849185,1772230240870,-500.0,0.00013698,2]
[406849186,1772230240883,-500.0,0.00013698,2]
[406849187,1772230240893,-500.0,0.00013698,2]
[406849188,1772230241036,-217.45849177,0.00013698,2]
[406849189,1772230241067,-500.0,0.00013698,2]
[406849190,1772230241077,-500.0,0.00013698,2]
[406849191,1772230241086,-500.0,0.00013698,2]
[406849192,1772230241096,-500.0,0.00013698,2]
[406849193,1772230241106,-500.0,0.00013698,2]
[406849194,1772230241115,-500.0,0.00013698,2]
[406849195,1772230241124,-500.0,0.00013698,2]
[406849196,1772230241133,-500.0,0.00013698,2]
[406849197,1772230241142,-500.0,0.00013698,2]
[406849198,1772230241151,-500.0,0.00013698,2]
[406849199,1772230241161,-500.0,0.00013698,2]
[406849200,1772230241170,-500.0,0.00013698,2]
[406849201,1772230241179,-500.0,0.00013698,2]
[406849202,1772230241188,-500.0,0.00013698,2]
[406849203,1772230241198,-500.0,0.00013698,2]
[406849204,1772230241207,-500.0,0.00013698,2]
[406849205,1772230241216,-500.0,0.00013698,2]
[406849206,1772230241225,-500.0,0.00013698,2]
[406849207,1772230241235,-500.0,0.00013698,2]
[406849208,1772230241244,-500.0,0.00013698,2]
[406849209,1772230241253,-636.48559846,0.00013698,2]
[406849210,1772230241262,-500.16,0.00013698,2]
[406849211,1772230241272,-500.16,0.00013698,2]
[406849212,1772230241281,-500.16,0.00013698,2]
[406849213,1772230241290,-500.16,0.00013698,2]
[406849214,1772230241299,-500.16,0.00013698,2]
[406849215,1772230241308,-500.16,0.00013698,2]
[406849216,1772230241317,-500.16,0.00013698,2]
[406849217,1772230241326,-500.16,0.00013698,2]
[406849218,1772230241336,-500.0,0.00013698,2]
[406849219,1772230241345,-500.0,0.00013698,2]
[406849220,1772230241355,-500.0,0.00013698,2]
[406849221,1772230241364,-500.0,0.00013698,2]
[406849222,1772230241374,-500.0,0.00013698,2]
[406849223,1772230241383,-500.0,0.00013698,2]
[406849224,1772230241392,-500.0,0.00013698,2]
[406849225,1772230241401,-500.0,0.00013698,2]
[406849226,1772230241410,-500.0,0.00013698,2]
[406849227,1772230241419,-500.0,0.00013698,2]
[406849228,1772230241428,-500.0,0.00013698,2]
[406849229,1772230241438,-500.0,0.00013698,2]
[406849230,1772230241448,-500.0,0.00013698,2]
[406849231,1772230241457,-500.0,0.00013698,2]
[406849232,1772230241467,-500.0,0.00013698,2]
[406849233,1772230241476,-180.14,0.00013698,2]
[406849234,1772230241485,-200.0,0.00013699,2]
[406849235,1772230241495,-366.29,0.00013699,2]
[406849236,1772230241504,-175.65842633,0.00013699,2]
[406849237,1772230241513,-500.0,0.00013699,2]
[406849238,1772230241523,-500.0,0.00013699,2]
[406849239,1772230241533,-500.0,0.00013699,2]
[406849240,1772230241542,-500.0,0.00013699,2]
[406849241,1772230241551,-500.0,0.00013699,2]
[406849242,1772230241561,-500.0,0.00013699,2]
[406849243,1772230241570,-500.0,0.00013699,2]
[406849244,1772230241579,-500.0,0.00013699,2]
[406849245,1772230241588,-500.0,0.00013699,2]
[406849246,1772230241598,-500.0,0.00013699,2]
[406849247,1772230241607,-500.0,0.00013699,2]
[406849248,1772230241616,-500.0,0.00013699,2]
[406849249,1772230241626,-500.0,0.00013699,2]
[406849250,1772230241635,-500.0,0.00013699,2]
[406849251,1772230241644,-500.0,0.00013699,2]
[406849252,1772230241653,-507.14846603,0.00013699,2]
[406849253,1772230241663,-500.0,0.00013699,2]
[406849254,1772230241672,-500.0,0.00013699,2]
[406849255,1772230241682,-500.0,0.00013699,2]
[406849256,1772230241691,-500.0,0.00013699,2]
[406849257,1772230241700,-500.0,0.00013699,2]
[406849258,1772230241710,-500.0,0.00013699,2]
[406849259,1772230241719,-288.09474142,0.00013699,2]
[406849260,1772230241728,-500.0,0.00013699,2]
[406849261,1772230241738,-500.0,0.00013699,2]
[406849262,1772230241747,-500.0,0.00013699,2]
[406849263,1772230241756,-500.0,0.00013699,2]
[406849264,1772230241765,-310.9054072,0.00013699,2]
[406849265,1772230241774,-500.0,0.00013699,2]
[406849266,1772230241783,-295.80767039,0.00013699,2]
[406849267,1772230241792,-10940.37796546,0.0001416,2]
[406849268,1772230241801,-1780.882654,0.0001417,7]
[406849269,1772230241811,-403.915081,0.0001417,7]
[406849270,1772230241820,-708.62062,0.00014247,2]
[406849271,1772230241829,-1000.0,0.00014247,2]
[406849272,1772230241838,-1000.0,0.00014247,2]
[406849273,1772230241849,-1000.0,0.00014247,2]
[406849274,1772230241858,-1000.0,0.00014247,2]
[406849275,1772230241867,-1000.0,0.00014247,2]
[406849276,1772230241877,-509.93232969,0.00014247,2]
[406849277,1772230241888,-1000.0,0.00014247,2]
[406849278,1772230241897,-1000.0,0.00014247,2]
[406849279,1772230241907,-1000.0,0.00014247,2]
[406849280,1772230241917,-512.76163768,0.00014247,2]
[406849281,1772230241926,-1000.0,0.00014247,2]
[406849282,1772230241935,-1000.0,0.00014247,2]
[406849283,1772230241945,-1000.0,0.00014247,2]
[406849284,1772230241956,-1000.0,0.00014247,2]
[406849285,1772230241965,-1000.0,0.00014247,2]
[406849286,1772230241975,-1000.0,0.00014247,2]
[406849287,1772230241984,-1000.0,0.00014247,2]
[406849288,1772230241993,-1000.0,0.00014247,2]
[406849289,1772230242003,-1000.0,0.00014247,2]
[406849290,1772230242012,-1000.0,0.00014247,2]
[406849291,1772230242021,-1000.0,0.00014247,2]
[406849292,1772230242031,-1000.0,0.00014247,2]
[406849293,1772230242040,-1008.10480934,0.00014247,2]
[406849294,1772230242050,-1006.69135807,0.00014247,2]
[406849295,1772230242061,-796.0,0.00014317,2]
[406849296,1772230242071,-366.29,0.00014384,2]
[406849297,1772230242081,-151.0,0.00014634,2]
[406849298,1772230242090,-1500.0,0.00014795,2]
[406849299,1772230242099,-1500.0,0.00014795,2]
[406849300,1772230242108,-1500.0,0.00014795,2]
[406849301,1772230242119,-1144.44196517,0.00014795,2]
[406849302,1772230242128,-1500.0,0.00014795,2]
[406849303,1772230242137,-1500.0,0.00014795,2]
[406849304,1772230242147,-1147.84261484,0.00014795,2]
[406849305,1772230242156,-1511.45189164,0.00014795,2]
[406849306,1772230242165,-1500.0,0.00014795,2]
[406849307,1772230242174,-1500.0,0.00014795,2]
[406849308,1772230242183,-1597.09510233,0.00014795,2]
[406849309,1772230242192,-1500.0,0.00014795,2]
[406849310,1772230242201,-1500.0,0.00014795,2]
[406849311,1772230242210,-741.17434169,0.00014795,2]
[406849312,1772230242220,-1500.0,0.00014795,2]
[406849313,1772230242230,-1500.0,0.00014795,2]
[406849314,1772230242240,-1500.0,0.00014795,2]
[406849315,1772230242250,-1500.0,0.00014795,2]
[406849316,1772230242261,-1500.0,0.00014795,2]
[406849317,1772230242271,-1500.0,0.00014795,2]
[406849318,1772230242283,-510.0,0.0001489,2]
[406849319,1772230242293,-169.39470199,0.000149,2]
[406849320,1772230242302,-169.39470198,0.000149,2]
[406849321,1772230242311,-169.39470198,0.000149,2]
[406849322,1772230242320,-250.0,0.00015,2]
[406849323,1772230242330,-693.13,0.00015068,2]
[406849324,1772230242340,-366.29,0.00015068,2]
[406849325,1772230242350,-160.0,0.00015281,2]
[406849326,1772230242360,-174.00015664,0.00015281,2]
[406849327,1772230242370,-29999.99,0.0001531,2]
[406849328,1772230242379,-9999.99,0.0001531,2]
[406849329,1772230242388,-902.4,0.0001531,2]
[406849330,1772230242397,-781.53,0.00015342,2]
[406849331,1772230242406,-1000.0,0.00015342,2]
[406849332,1772230242415,-2000.0,0.00015342,2]
[406849333,1772230242425,-1516.10263761,0.00015342,2]
[406849334,1772230242434,-215.41849404,0.00015342,2]
[406849335,1772230242443,-203.52805437,0.00015342,2]
[406849336,1772230242452,-2000.0,0.00015342,2]
[406849337,1772230242462,-2000.0,0.00015342,2]
[406849338,1772230242471,-1201.13446519,0.00015342,2]
[406849339,1772230242480,-2000.0,0.00015342,2]
[406849340,1772230242489,-1614.542994,0.00015342,2]
[406849341,1772230242498,-1505.60534384,0.00015342,2]
[406849342,1772230242508,-538.67533251,0.00015342,2]
[406849343,1772230242519,-2000.0,0.00015342,2]
[406849344,1772230242528,-2000.0,0.00015342,2]
[406849345,1772230242537,-2000.0,0.00015342,2]
[406849346,1772230242546,-10940.37796546,0.00015407,2]
[406849347,1772230242556,-366.29,0.00015753,2]
[406849348,1772230242565,-1000.0,0.00015834,7]
[406849349,1772230242574,-2500.0,0.0001589,2]
[406849350,1772230242584,-1005.53161927,0.0001589,2]
[406849351,1772230242594,-2275.06944665,0.0001589,2]
[406849352,1772230242604,-2500.0,0.0001589,2]
[406849353,1772230242613,-1023.31974037,0.0001589,2]
[406849354,1772230242623,-2028.27485084,0.0001589,2]
[406849355,1772230242632,-2500.0,0.0001589,2]
[406849356,1772230242641,-5000.0,0.0001596,2]